fUSD/lending_fUSD_20251224
["ID","MTS","AMOUNT","RATE_DAILY","PERIOD"]
[399634961,1766576358225,825.634552,0.00014098,2]
[399634962,1766576363790,215.04444482,0.000141,2]
[399634963,1766576375022,209.0,9.989e-05,2]
[399634964,1766576375309,209.0,9.989e-05,2]
[399634965,1766576375607,209.0,9.989e-05,2]
[399634966,1766576379284,322.44245558,0.00014197,2]
[399634967,1766576401183,300.0,0.00014197,2]
[399634968,1766576401229,1200.0,0.00014197,2]
[399634969,1766576401399,300.0,0.00014197,2]
[399634970,1766576429699,500.0,0.00014197,2]
[399634971,1766576429934,500.0,0.00014197,2]
[399634972,1766576430215,500.0,0.00014197,2]
[399634973,1766576448886,336.15530719,0.00014098,2]
[399634974,1766576466159,2500.0,0.00014098,2]
[399634975,1766576467293,500.0,0.00014197,2]
[399634976,1766576467555,500.0,0.00014197,2]
[399634977,1766576467769,500.0,0.00014197,2]
[399634978,1766576480729,151.0,0.00014195,2]
[399634979,1766576484736,222.73324041,0.00014098,2]
[399634980,1766576484761,10000.01,0.00014098,2]
[399634981,1766576484783,10000.01,0.00014098,2]
[399634982,1766576484806,2818.66402683,0.00014098,2]
[399634983,1766576489132,828.04417023,0.00014098,2]
[399634984,1766576489886,500.0,0.00014197,2]
[399634985,1766576490121,500.0,0.00014197,2]
[399634986,1766576490380,500.0,0.00014197,2]
[399634987,1766576493595,1552.829,0.00013914,2]
[399634988,1766576493648,185.404,0.00013914,2]
[399634989,1766576503019,823.88079142,0.00014098,2]
[399634990,1766576503962,288.32858999,0.00014099,2]
[399634991,1766576508391,500.0,0.00014197,2]
[399634992,1766576508641,345.61944789,0.00014197,2]
[399634993,1766576508778,1157.23997364,0.00014098,2]
[399634994,1766576508800,2811.74302636,0.00014098,2]
[399634995,1766576508854,500.0,0.00014123,2]
[399634996,1766576508898,153.03279189,0.00014123,2]
[399634997,1766576509012,500.0,0.0001415,2]
[399634998,1766576509098,500.0,0.00014123,2]
[399634999,1766576509171,505.1877308,0.00014178,2]
[399635000,1766576509245,500.0,0.0001415,2]
[399635001,1766576509399,502.59455513,0.00014178,2]
[399635002,1766576521287,300.0,0.00014197,2]
[399635003,1766576522466,150.0,0.00014197,2]
[399635004,1766576540240,500.0,0.00014197,2]
[399635005,1766576540298,415.34344135,0.00014197,2]
[399635006,1766576552063,1500.0,0.00013602,2]
[399635007,1766576554148,500.0,0.00014197,2]
[399635008,1766576554235,160.62521248,0.00014197,2]
[399635009,1766576561898,151.0,0.00014198,2]
[399635010,1766576562524,151.0,0.00014198,2]
[399635011,1766576563128,151.0,0.00014198,2]
[399635012,1766576563731,48.48324199,0.00014198,2]
[399635013,1766576563756,102.51675801,0.00014198,2]
[399635014,1766576564330,151.0,0.00014198,2]
[399635015,1766576564935,151.0,0.00014198,2]
[399635016,1766576574911,-9595.49324199,0.00014198,2]
[399635017,1766576574946,-10000.01,0.00014198,2]
[399635018,1766576575033,-10000.01,0.00014198,2]
[399635019,1766576575191,-10000.01,0.00014198,2]
[399635020,1766576575276,-10000.01,0.00014198,2]
[399635021,1766576575388,-10000.01,0.00014198,2]
[399635022,1766576589852,1200.0,0.00014197,2]
[399635023,1766576593965,151.0,0.00014195,2]
[399635024,1766576604070,179.07318237,0.00032,120]
[399635025,1766576609363,2500.0,0.00014098,2]
[399635026,1766576613001,603.0,0.00032,120]
[399635027,1766576613512,6149.01,0.00014098,2]
[399635028,1766576613536,10000.01,0.00014098,2]
[399635029,1766576613560,5947.6527015,0.00014098,2]
[399635030,1766576616870,500.0,0.00032876,120]
[399635031,1766576644826,192.21906,0.00014197,2]
[399635032,1766576658403,500.0,0.00014123,2]
[399635033,1766576658805,500.0,0.00014123,2]
[399635034,1766576658853,500.0,0.0001415,2]
[399635035,1766576658902,500.0,0.00014123,2]
[399635036,1766576658939,500.0,0.0001415,2]
[399635037,1766576658981,500.0,0.00014178,2]
[399635038,1766576659018,500.0,0.0001415,2]
[399635039,1766576659062,503.23833486,0.00014178,2]
[399635040,1766576659103,500.0,0.00014178,2]
[399635041,1766576659138,150.0,0.00014123,2]
[399635042,1766576659862,500.0,0.00014123,2]
[399635043,1766576660021,500.0,0.0001415,2]
[399635044,1766576660172,284.13451701,0.00014178,2]
[399635045,1766576660832,200.0,0.00013699,2]
[399635046,1766576661080,500.0,0.00014123,2]
[399635047,1766576661227,500.0,0.00014123,2]
[399635048,1766576661274,500.0,0.0001415,2]
[399635049,1766576661391,622.96244063,0.0001415,2]
[399635050,1766576661430,500.0,0.00014178,2]
[399635051,1766576662157,500.0,0.00014123,2]
[399635052,1766576662269,500.0,0.00014123,2]
[399635053,1766576662325,47.4556475,0.0001415,2]
[399635054,1766576662349,452.5443525,0.0001415,2]
[399635055,1766576662486,500.0,0.0001415,2]
[399635056,1766576662526,500.0,0.00014178,2]
[399635057,1766576662642,203.38212511,0.00014178,2]
[399635058,1766576662815,150.0,0.00014123,2]
[399635059,1766576662854,150.0,0.00014123,2]
[399635060,1766576662894,694.0,0.00014123,2]
[399635061,1766576663023,694.0,0.0001415,2]
[399635062,1766576663181,694.0,0.00014178,2]
[399635063,1766576663430,500.0,0.00014123,2]
[399635064,1766576663770,500.0,0.0001415,2]
[399635065,1766576663816,500.0,0.00014123,2]
[399635066,1766576663921,500.0,0.00014178,2]
[399635067,1766576663974,500.0,0.0001415,2]
[399635068,1766576664136,500.0,0.00014178,2]
[399635069,1766576668179,500.0,0.00014123,2]
[399635070,1766576668404,500.0,0.0001415,2]
[399635071,1766576668565,500.0,0.00014178,2]
[399635072,1766576683689,295.28,0.00013351,2]
[399635073,1766576701178,300.0,0.00014197,2]
[399635074,1766576701215,300.0,0.00014197,2]
[399635075,1766576701670,1200.0,0.00014197,2]
[399635076,1766576702731,150.0,0.00014197,2]
[399635077,1766576713951,151.0,0.00014195,2]
[399635078,1766576746788,500.0,0.00014197,2]
[399635079,1766576747393,500.0,0.00014197,2]
[399635080,1766576747440,500.0,0.00014197,2]
[399635081,1766576750596,500.0,0.00014197,2]
[399635082,1766576751021,500.0,0.00014197,2]
[399635083,1766576751254,500.0,0.00014197,2]
[399635084,1766576755554,500.0,0.00014197,2]
[399635085,1766576755793,500.0,0.00014197,2]
[399635086,1766576756033,500.0,0.00014197,2]
[399635087,1766576758792,2500.0,0.00014098,2]
[399635088,1766576772692,500.0,0.00014197,2]
[399635089,1766576772940,103.73,0.00014197,2]
[399635090,1766576772964,396.27,0.00014197,2]
[399635091,1766576773168,500.0,0.00014197,2]
[399635092,1766576782798,500.0,0.00014197,2]
[399635093,1766576783029,500.0,0.00014197,2]
[399635094,1766576783258,500.0,0.00014197,2]
[399635095,1766576784118,969.3551477,0.00014098,2]
[399635096,1766576786705,192.21905999,0.00014197,2]
[399635097,1766576795434,500.0,0.00014197,2]
[399635098,1766576795708,500.0,0.00014197,2]
[399635099,1766576795810,500.0,0.00014197,2]
[399635100,1766576796068,500.0,0.00014197,2]
[399635101,1766576796175,500.0,0.00014197,2]
[399635102,1766576797138,500.0,0.00014197,2]
[399635103,1766576797209,749.38317786,0.00014098,2]
[399635104,1766576822486,1500.0,0.00032877,120]
[399635105,1766576830611,1500.0,0.00032877,120]
[399635106,1766576836480,1500.0,0.00032877,120]
[399635107,1766576841921,1500.0,0.00032877,120]
[399635108,1766576853476,1500.0,0.00032877,120]
[399635109,1766576858376,-385.02730404,0.00013323,2]
[399635110,1766576858799,1500.0,0.00032877,120]
[399635111,1766576861827,-392.75244996,0.00013323,2]
[399635112,1766576864167,-201.74530311,0.00013323,2]
[399635113,1766576866521,-226.32515273,0.00013323,2]
[399635114,1766576868658,-671.55637566,0.00013323,2]
[399635115,1766576871126,-350.2803979,0.00013323,2]
[399635116,1766576873347,-277.73185187,0.00013323,2]
[399635117,1766576876057,-160.16794915,0.00013323,2]
[399635118,1766576878272,-151.40513183,0.00013323,2]
[399635119,1766576884314,-188.27973739,0.00013323,2]
[399635120,1766576885826,-537.99660956,0.00013323,2]
[399635121,1766576887444,-201.17741891,0.00013323,2]
[399635122,1766576890967,-386.71585057,0.00013323,2]
[399635123,1766576892386,-291.77566627,0.00013323,2]
[399635124,1766576894938,-224.35526411,0.00013323,2]
[399635125,1766576896948,-357.49856696,0.00013323,2]
[399635126,1766576898331,-279.48633976,0.00013323,2]
[399635127,1766576899829,-257.3312713,0.00013323,2]
[399635128,1766576901854,-264.55332962,0.00013323,2]
[399635129,1766576903296,-443.64321213,0.00013323,2]
[399635130,1766576924987,500.0,0.00032876,120]
[399635131,1766576925214,411.98933297,0.00032876,120]
[399635132,1766576971145,-174.62481717,0.00013323,2]
[399635133,1766576978592,-250.0,0.00013675,2]
[399635134,1766576978622,-300.0,0.00013773,2]
[399635135,1766576978652,-300.0,0.00013773,2]
[399635136,1766576978681,-300.0,0.00013773,2]
[399635137,1766576978709,-300.0,0.00013773,2]
[399635138,1766576978740,-250.0,0.00013914,2]
[399635139,1766576978769,-3047.266485,0.00013956,2]
[399635140,1766576979009,-505.47703,0.00013956,2]
[399635141,1766576979040,-192.21905999,0.00013998,2]
[399635142,1766576979070,-500.0,0.00013998,2]
[399635143,1766576979100,-500.0,0.00013998,2]
[399635144,1766576979130,-500.0,0.00013998,2]
[399635145,1766576979160,-257.60886303,0.00014023,2]
[399635146,1766576979189,-150.0,0.00014023,2]
[399635147,1766576979220,-150.0,0.00014023,2]
[399635148,1766576979250,-150.0,0.00014023,2]
[399635149,1766576979279,-150.0,0.00014023,2]
[399635150,1766576979309,-150.0,0.00014023,2]
[399635151,1766576979339,-500.0,0.00014025,2]
[399635152,1766576979369,-500.0,0.00014025,2]
[399635153,1766576979398,-500.0,0.00014025,2]
[399635154,1766576993692,-9350.01,0.00014027,2]
[399635155,1766576993816,-10000.01,0.00014027,2]
[399635156,1766576993925,-4679.88221523,0.00014027,2]
[399635157,1766576993961,-155.24950802,0.0001405,2]
[399635158,1766576994011,-121.859404,0.0001405,2]
[399635159,1766576994076,-86.0277455,0.0001405,2]
[399635160,1766576999755,-150.0,0.0001405,2]
[399635161,1766576999791,-150.0,0.0001405,2]
[399635162,1766576999821,-508.93435173,0.00014053,2]
[399635163,1766576999851,-500.0,0.00014053,2]
[399635164,1766576999879,-500.0,0.00014053,2]
[399635165,1766576999909,-206.58520274,0.00014078,2]
[399635166,1766576999939,-200.0,0.00014078,2]
[399635167,1766576999967,-500.0,0.0001408,2]
[399635168,1766576999995,-500.0,0.0001408,2]
[399635169,1766577000497,-151.0,0.00014095,2]
[399635170,1766577000528,-150.0,0.00014097,2]
[399635171,1766577000558,-150.0,0.00014097,2]
[399635172,1766577000591,-462.43764874,0.00014097,2]
[399635173,1766577001326,300.0,0.00014097,2]
[399635174,1766577001382,300.0,0.00014097,2]
[399635175,1766577018347,-1200.0,0.00014097,2]
[399635176,1766577018377,-600.0,0.00014098,2]
[399635186,1766577031611,-298.1025574,0.00014098,2]
[399635187,1766577031663,-1005.3639732,0.00014098,2]
[399635188,1766577031675,-9906.3228,0.00014098,2]
[399635189,1766577031688,-12974.89645027,0.00014098,2]
[399635190,1766577031715,-525.74328535,0.00014098,2]
[399635191,1766577031727,-1337.70986208,0.00014098,2]
[399635192,1766577031739,-1257.02204758,0.00014098,2]
[399635193,1766577031770,-5610.104616,0.00014098,2]
[399635194,1766577031823,-500.0,0.00014098,2]
[399635195,1766577031835,-306.0,0.00014098,2]
[399635196,1766577031847,-398.97710426,0.00014098,2]
[399635200,1766577037839,-965879.75730386,0.00014098,2]
[399635201,1766577037849,-350.2804,0.00014098,2]
[399635202,1766577037859,-1267.3606,0.00014098,2]
[399635203,1766577037870,-2500.0,0.00014098,2]
[399635204,1766577037880,-195.0,0.00014103,2]
[399635205,1766577037890,-300.0,0.00014103,2]
[399635206,1766577037901,-250.0,0.00014103,2]
[399635207,1766577037911,-500.0,0.00014108,2]
[399635208,1766577037921,-500.0,0.00014108,2]
[399635209,1766577037931,-276.0,0.00014135,2]
[399635210,1766577037940,-500.0,0.00014135,2]
[399635211,1766577037950,-300.0,0.00014139,2]
[399635212,1766577037960,-300.0,0.00014139,2]
[399635213,1766577037969,-500.0,0.00014162,2]
[399635214,1766577037979,-500.0,0.0001419,2]
[399635215,1766577037988,-500.0,0.00014197,2]
[399635216,1766577037999,-500.0,0.00014197,2]
[399635217,1766577038009,-500.0,0.00014197,2]
[399635218,1766577038019,-1000.0,0.00014198,2]
[399635219,1766577038029,-250.0,0.00014198,2]
[399635220,1766577038039,-33504.5899,0.00014198,2]
[399635221,1766577038050,-300.0,0.00014198,2]
[399635222,1766577038060,-500.0,0.00014217,2]
[399635223,1766577038070,-500.0,0.00014245,2]
[399635224,1766577038079,-150.0,0.00014245,2]
[399635225,1766577038089,-500.0,0.00014245,2]
[399635226,1766577038099,-500.0,0.00014245,2]
[399635227,1766577038108,-500.0,0.00014245,2]
[399635229,1766577038118,-500.0,0.00014245,2]
[399635231,1766577038128,-151.75927975,0.00014245,2]
[399635233,1766577038138,-500.0,0.00014245,2]
[399635235,1766577038147,-157.8979539,0.00014245,2]
[399635237,1766577038156,-150.0,0.00014245,2]
[399635238,1766577038165,-150.0,0.00014245,2]
[399635240,1766577038175,-151.17389977,0.00014245,2]
[399635242,1766577038184,-500.0,0.0001426,2]
[399635244,1766577038194,-500.0,0.00014272,2]
[399635246,1766577038203,-150.0,0.00014272,2]
[399635248,1766577038213,-500.0,0.00014272,2]
[399635250,1766577038223,-500.0,0.00014272,2]
[399635252,1766577038233,-500.0,0.00014272,2]
[399635253,1766577038243,-500.0,0.00014272,2]
[399635255,1766577038253,-500.0,0.00014272,2]
[399635257,1766577038263,-150.0,0.00014272,2]
[399635259,1766577038273,-156.7431376,0.00014272,2]
[399635261,1766577038283,-2282.35,0.00014297,2]
[399635263,1766577038292,-500.0,0.00014297,2]
[399635265,1766577038302,-500.0,0.00014297,2]
[399635267,1766577038312,-500.0,0.00014297,2]
[399635269,1766577038322,-500.0,0.00014297,2]
[399635271,1766577038331,-500.0,0.00014297,2]
[399635273,1766577038340,-500.0,0.00014297,2]
[399635275,1766577038350,-500.0,0.00014297,2]
[399635276,1766577038359,-500.0,0.00014297,2]
[399635278,1766577038369,-500.0,0.00014297,2]
[399635280,1766577038380,-500.0,0.00014297,2]
[399635283,1766577038391,-500.0,0.00014297,2]
[399635285,1766577038401,-500.0,0.00014297,2]
[399635286,1766577038412,-500.0,0.00014297,2]
[399635288,1766577038422,-500.0,0.00014297,2]
[399635290,1766577038432,-500.0,0.00014297,2]
[399635292,1766577038443,-500.0,0.00014297,2]
[399635294,1766577038452,-287.11465544,0.00014297,2]
[399635296,1766577038463,-500.0,0.00014297,2]
[399635298,1766577038473,-500.0,0.00014297,2]
[399635300,1766577038486,-500.0,0.00014297,2]
[399635302,1766577038496,-500.0,0.00014297,2]
[399635304,1766577038507,-390.50248371,0.00014297,2]
[399635306,1766577038521,-500.0,0.00014297,2]
[399635308,1766577038531,-398.68934422,0.00014297,2]
[399635310,1766577038541,-500.0,0.00014297,2]
[399635312,1766577038551,-500.0,0.00014297,2]
[399635314,1766577038561,-500.0,0.00014297,2]
[399635316,1766577038572,-500.0,0.00014297,2]
[399635318,1766577038582,-500.0,0.00014297,2]
[399635320,1766577038593,-500.0,0.00014297,2]
[399635322,1766577038602,-543.18761393,0.00014297,2]
[399635324,1766577038613,-500.0,0.00014297,2]
[399635326,1766577038623,-500.0,0.00014297,2]
[399635328,1766577038633,-500.0,0.00014297,2]
[399635330,1766577038643,-500.0,0.00014297,2]
[399635331,1766577038654,-9999.99,0.00014297,2]
[399635334,1766577038664,-150.99,0.00014297,2]
[399635335,1766577038675,-999.99,0.00014297,2]
[399635337,1766577038684,-9999.99,0.00014297,2]
[399635339,1766577038695,-9999.99,0.00014297,2]
[399635341,1766577038705,-299.99,0.00014297,2]
[399635343,1766577038715,-2033.81,0.00014297,2]
[399635345,1766577038725,-500.0,0.00014297,2]
[399635347,1766577038734,-500.0,0.00014297,2]
[399635349,1766577038744,-333.22,0.00014297,2]
[399635351,1766577038755,-29223.46,0.00014297,2]
[399635353,1766577038764,-150.99,0.00014297,2]
[399635355,1766577038775,-4999.99,0.00014297,2]
[399635357,1766577038785,-500.0,0.00014297,2]
[399635359,1766577038796,-500.0,0.00014297,2]
[399635361,1766577038807,-500.0,0.00014297,2]
[399635363,1766577038817,-500.0,0.00014297,2]
[399635365,1766577038827,-500.0,0.00014297,2]
[399635367,1766577038837,-500.0,0.00014297,2]
[399635368,1766577038847,-500.0,0.00014297,2]
[399635371,1766577038857,-500.0,0.00014297,2]
[399635372,1766577038867,-500.0,0.00014297,2]
[399635374,1766577038878,-500.0,0.00014297,2]
[399635376,1766577038888,-500.0,0.00014297,2]
[399635378,1766577038898,-500.0,0.00014297,2]
[399635380,1766577038908,-500.0,0.00014297,2]
[399635382,1766577038919,-500.0,0.00014297,2]
[399635384,1766577038929,-500.0,0.00014297,2]
[399635386,1766577038942,-386.65632401,0.00014297,2]
[399635388,1766577038952,-500.0,0.00014297,2]
[399635390,1766577038962,-2159.39,0.00014297,2]
[399635392,1766577038972,-465.63377507,0.00014299,2]
[399635394,1766577038982,-153.22066729,0.000143,2]
[399635396,1766577038992,-500.0,0.000143,2]
[399635398,1766577039002,-500.0,0.000143,2]
[399635400,1766577039013,-504.56733337,0.000143,2]
[399635402,1766577039023,-500.0,0.000143,2]
[399635404,1766577039033,-500.0,0.000143,2]
[399635406,1766577039044,-202.57672369,0.000143,2]
[399635408,1766577039054,-500.0,0.00014327,2]
[399635410,1766577039064,-305.89905131,0.00014327,2]
[399635412,1766577039075,-154.41523631,0.00014327,2]
[399635414,1766577039085,-500.0,0.00014327,2]
[399635416,1766577039096,-24029.90221517,0.00014346,2]
[399635418,1766577039107,-500.0,0.00014355,2]
[399635420,1766577039117,-500.0,0.00014355,2]
[399635422,1766577039128,-1191.16039457,0.00014363,2]
[399635423,1766577039138,-151.0,0.0001437,2]
[399635425,1766577039148,-570.5676631,0.00014372,2]
[399635428,1766577039160,-486.58926638,0.00014372,2]
[399635429,1766577039171,-500.0,0.00014372,2]
[399635431,1766577039181,-500.0,0.00014372,2]
[399635433,1766577039193,-77202.64216888,0.00014373,2]
[399635435,1766577039204,-500.0,0.00014382,2]
[399635437,1766577039214,-500.0,0.00014382,2]
[399635439,1766577039224,-500.0,0.00014397,2]
[399635441,1766577039234,-500.0,0.00014397,2]
[399635443,1766577039244,-500.0,0.00014397,2]
[399635445,1766577039253,-500.0,0.00014397,2]
[399635447,1766577039263,-500.0,0.00014397,2]
[399635449,1766577039274,-500.0,0.00014397,2]
[399635451,1766577039284,-500.0,0.00014397,2]
[399635453,1766577039293,-500.0,0.00014397,2]
[399635455,1766577039303,-528.10208627,0.00014397,2]
[399635457,1766577039313,-500.0,0.00014397,2]
[399635459,1766577039323,-500.0,0.00014397,2]
[399635461,1766577039333,-500.0,0.00014397,2]
[399635463,1766577039343,-500.0,0.00014397,2]
[399635465,1766577039354,-500.0,0.00014397,2]
[399635467,1766577039366,-500.0,0.00014397,2]
[399635469,1766577039376,-500.0,0.00014397,2]
[399635471,1766577039385,-500.0,0.00014397,2]
[399635473,1766577039396,-500.0,0.00014397,2]
[399635475,1766577039406,-500.0,0.00014397,2]
[399635477,1766577039416,-500.0,0.00014397,2]
[399635479,1766577039426,-500.0,0.00014397,2]
[399635481,1766577039436,-150.0,0.00014401,2]
[399635483,1766577039446,-500.0,0.00014409,2]
[399635485,1766577039456,-500.0,0.00014409,2]
[399635487,1766577039466,-569.88171229,0.00014409,2]
[399635489,1766577039480,-500.0,0.00014409,2]
[399635491,1766577039489,-150.9439251,0.00014428,2]
[399635492,1766577039500,-554.97447821,0.00014437,2]
[399635493,1766577039511,-166.67,0.00014472,2]
[399635494,1766577039522,-500.0,0.00014534,2]
[399635495,1766577039532,-2159.39,0.00014571,2]
[399635496,1766577039544,-250.0,0.00014655,2]
[399635497,1766577039553,-600.0,0.00014655,2]
[399635498,1766577039563,-300.0,0.00014655,2]
[399635499,1766577039574,-600.0,0.00014655,2]
[399635501,1766577039583,-24029.90221517,0.00014665,2]
[399635502,1766577039593,-500.0,0.00014712,2]
[399635503,1766577039603,-1894.23506952,0.00014717,2]
[399635504,1766577039613,-390.50248368,0.00014731,2]
[399635505,1766577039623,-502.99520475,0.00014808,2]
[399635506,1766577039632,-2159.39,0.00014845,2]
[399635507,1766577039642,-226.62941462,0.000149,2]
[399635508,1766577039652,-366.16,0.00014932,2]
[399635509,1766577039661,-226.5,0.00014959,2]
[399635510,1766577039671,-24029.90221517,0.00014985,2]
[399635511,1766577039681,-500.0,0.00015003,2]
[399635512,1766577039690,-591.54,0.00015112,2]
[399635513,1766577039700,-2159.39,0.00015119,2]
[399635514,1766577039709,-197.88,0.00015128,2]
[399635515,1766577039719,-390.50248368,0.00015165,2]
[399635516,1766577039729,-169.37257746,0.00015173,2]
[399635517,1766577039739,-161.57308931,0.00015173,2]
[399635518,1766577039748,-163.19223575,0.00015173,2]
[399635519,1766577039757,-174.83400543,0.00015173,2]
[399635520,1766577039768,-176.76151573,0.00015173,2]
[399635521,1766577039777,-500.0,0.00015173,2]
[399635522,1766577039786,-500.0,0.00015173,2]
[399635523,1766577039796,-500.0,0.00015173,2]
[399635524,1766577039805,-500.0,0.00015173,2]
[399635525,1766577039815,-500.0,0.00015173,2]
[399635526,1766577039825,-562.564449,0.00015173,2]
[399635527,1766577039835,-500.08479975,0.00015173,2]
[399635528,1766577039845,-167.20691349,0.00015173,2]
[399635529,1766577039855,-500.0,0.00015173,2]
[399635530,1766577039864,-500.0,0.00015173,2]
[399635531,1766577039874,-500.0,0.00015173,2]
[399635533,1766577039885,-172.85820104,0.00015173,2]
[399635534,1766577039895,-500.0,0.00015173,2]
[399635536,1766577039904,-500.0,0.00015173,2]
[399635538,1766577039913,-500.0,0.00015173,2]
[399635540,1766577039923,-500.37919946,0.00015173,2]
[399635542,1766577039932,-453.84632834,0.00015173,2]
[399635544,1766577039942,-500.0,0.00015173,2]
[399635546,1766577039952,-500.0,0.00015173,2]
[399635548,1766577039961,-500.0,0.00015173,2]
[399635550,1766577039971,-500.0,0.00015173,2]
[399635552,1766577039981,-500.0,0.00015173,2]
[399635554,1766577039990,-500.0,0.00015173,2]
[399635556,1766577039999,-500.0,0.00015173,2]
[399635558,1766577040009,-500.0,0.00015173,2]
[399635560,1766577040019,-500.0,0.00015173,2]
[399635562,1766577040029,-500.0,0.00015173,2]
[399635564,1766577040038,-224.16527175,0.00015173,2]
[399635566,1766577040047,-500.0,0.00015173,2]
[399635568,1766577040057,-550.49299637,0.00015173,2]
[399635570,1766577040066,-500.0,0.00015173,2]
[399635572,1766577040076,-500.0,0.00015173,2]
[399635574,1766577040085,-500.0,0.00015173,2]
[399635576,1766577040094,-500.0,0.00015173,2]
[399635578,1766577040103,-162.2863667,0.00015173,2]
[399635580,1766577040113,-500.0,0.00015173,2]
[399635582,1766577040122,-500.0,0.00015173,2]
[399635584,1766577040133,-628.74466139,0.00015173,2]
[399635586,1766577040143,-516.09973549,0.00015173,2]
[399635588,1766577040153,-500.0,0.00015173,2]
[399635590,1766577040162,-500.0,0.00015173,2]
[399635592,1766577040171,-255.0,0.00015225,2]
[399635594,1766577040181,-500.0,0.00015288,2]
[399635596,1766577040191,-152.81357025,0.00015288,2]
[399635598,1766577040201,-150.0,0.00015288,2]
[399635600,1766577040211,-150.0,0.00015288,2]
[399635602,1766577040221,-150.0,0.00015288,2]
[399635604,1766577040231,-150.0,0.00015288,2]
[399635606,1766577040241,-150.0,0.00015288,2]
[399635608,1766577040251,-150.0,0.00015288,2]
[399635610,1766577040261,-150.00000001,0.00015288,2]
[399635612,1766577040271,-152.31137415,0.00015288,2]
[399635614,1766577040281,-150.0,0.00015288,2]
[399635616,1766577040291,-150.0,0.00015288,2]
[399635618,1766577040300,-150.0,0.00015288,2]
[399635620,1766577040310,-150.0,0.00015288,2]
[399635622,1766577040319,-150.0,0.00015288,2]
[399635624,1766577040329,-24029.90221517,0.00015304,2]
[399635626,1766577040339,-578.20924308,0.00015349,2]
[399635628,1766577040349,-500.0,0.00015349,2]
[399635630,1766577040359,-500.0,0.00015349,2]
[399635632,1766577040368,-500.0,0.00015349,2]
[399635634,1766577040378,-500.0,0.00015349,2]
[399635636,1766577040388,-500.0,0.00015349,2]
[399635638,1766577040397,-500.0,0.00015349,2]
[399635640,1766577040408,-500.0,0.00015349,2]
[399635642,1766577040417,-500.0,0.00015349,2]
[399635644,1766577040427,-200.0,0.00015349,2]
[399635646,1766577040439,-500.0,0.00015349,2]
[399635648,1766577040449,-151.0,0.00015349,2]
[399635650,1766577040459,-207.4,0.00015349,2]
[399635652,1766577040468,-500.0,0.00015349,2]
[399635654,1766577040482,-156.587,0.00015349,2]
[399635657,1766577040498,-215.0738,0.00015349,2]
[399635659,1766577040508,-500.0,0.00015349,2]
[399635661,1766577040519,-162.380719,0.00015349,2]
[399635662,1766577040529,-223.0315306,0.00015349,2]
[399635664,1766577040540,-153.82745935,0.00015349,2]
[399635665,1766577040552,-231.28369723,0.00015349,2]
[399635666,1766577040564,-239.84119403,0.00015349,2]
[399635668,1766577040574,-248.71531821,0.00015349,2]
[399635669,1766577040583,-257.91778498,0.00015349,2]